bitfinex-derivatives/quotes_BNBF0:USTF0_20250401
["timestamp","ask_amount","ask_price","bid_price","bid_amount"]
[1743547717550,0.30028777,612.51,612.14,0.8065178]
[1743547717751,0.30028777,612.5,612.15,0.8065178]
[1743547717950,0.30028777,612.49,612.16,0.8065178]
[1743547718149,0.30028777,612.51,612.17,0.80498685]
[1743547718446,0.30028777,612.51,612.18,0.80498685]
[1743547718651,0.30028777,612.51,612.19,0.80498685]
[1743547718851,0.30028777,612.51,612.2,0.80498685]
[1743547719052,0.30028777,612.51,612.21,0.80498685]
[1743547719247,0.30028777,612.58,612.22,0.80498685]
[1743547719446,0.30028777,612.57,612.23,0.80498685]
[1743547719646,0.28423361,612.5,612.24,0.80498685]
[1743547719851,0.30028777,612.49,612.25,0.80498685]
[1743547720045,0.30028777,612.48,612.26,0.80498685]
[1743547720250,0.28422781,612.49,612.27,0.80498685]
[1743547720445,0.30028777,612.48,612.28,0.80498685]
[1743547720650,0.30028777,612.48,612.29,0.80498685]
[1743547720852,0.30028777,612.48,612.3,0.80498685]
[1743547721052,0.30028777,612.48,611.55,0.32703785]
[1743547721253,0.30028777,612.48,611.56,0.805051]
[1743547721453,0.30028777,612.48,611.57,0.805051]
[1743547721646,0.30028777,612.48,611.58,0.805051]
[1743547721849,0.30028777,612.48,611.59,0.805051]
[1743547722149,0.30028777,612.48,611.6,0.805051]
[1743547722349,0.30028777,612.47,611.61,0.805051]
[1743547722547,0.30028777,612.46,611.62,0.805051]
[1743547722747,0.30028777,612.46,611.63,0.805051]
[1743547723051,0.30028777,612.46,611.55,0.32703785]
[1743547723052,0.30028777,612.46,611.64,0.805051]
[1743547723252,0.28434973,612.47,611.55,0.32703785]
[1743547723253,0.30032102,612.45,611.65,0.80508106]
[1743547723453,0.594,612.45,611.66,0.80508106]
[1743547723654,0.30032102,612.44,611.67,0.80508106]
[1743547723853,0.30032102,612.44,611.68,0.80508106]
[1743547724154,0.30032102,612.44,611.69,0.80508106]
[1743547724353,0.30032102,612.44,611.7,0.80506508]
[1743547724553,0.30032102,612.44,611.71,0.80506508]
[1743547724755,0.30032102,612.44,611.72,0.80506508]
[1743547725052,0.30032102,612.44,611.73,0.80506508]
[1743547725248,0.30032102,612.44,611.74,0.80506508]
[1743547725451,0.28433928,612.43,611.75,0.80506508]
[1743547725754,0.30032102,612.42,611.76,0.80506508]
[1743547725953,0.30032102,612.42,611.77,0.80506508]
[1743547726253,0.30032102,612.42,611.78,0.80506508]
[1743547726552,0.30032102,612.42,611.79,0.80506508]
[1743547726753,0.30032102,612.42,611.8,0.80506508]
[1743547726953,0.30032102,612.42,611.81,0.80506508]
[1743547727152,0.30032102,612.42,611.82,0.80506508]
[1743547727353,0.30032102,612.42,611.83,0.80506508]
[1743547727654,0.30032102,612.42,611.84,0.80506508]
[1743547727854,0.30032102,612.42,611.85,0.80506508]
[1743547728149,0.30032102,612.42,611.86,0.80506508]
[1743547728349,0.30032102,612.44,611.87,0.80506508]
[1743547728548,0.2843265,612.41,611.88,0.80506508]
[1743547728749,0.30032102,612.4,611.89,0.80506508]
[1743547728951,0.30032102,612.4,611.9,0.80506508]
[1743547729154,0.2843265,612.41,611.91,0.80506508]
[1743547729357,0.30036533,612.4,611.92,0.8056822]
[1743547730056,0.30036533,612.4,611.57,1.20745427]
[1743547730555,0.30036533,612.4,611.58,0.80578852]
[1743547730755,0.30036533,612.4,611.59,0.80578852]
[1743547730956,0.30036533,612.4,611.6,0.80578852]
[1743547731156,0.30036533,612.4,611.61,0.80578852]
[1743547731358,0.30036533,612.4,611.55,0.32703785]
[1743547731359,0.30036533,612.4,611.62,0.80578852]
[1743547731552,0.30036533,612.4,611.63,0.80578852]
[1743547731755,0.30036533,612.4,611.64,0.80595267]
[1743547731953,0.3003872,612.39,611.65,0.80595267]
[1743547732156,0.3003872,612.38,611.66,0.80595267]
[1743547732352,0.3003872,612.37,611.67,0.80595267]
[1743547732557,0.3003872,612.36,611.68,0.80595267]
[1743547732858,0.3003872,612.35,611.69,0.80595267]
[1743547733158,0.3003872,612.34,611.7,0.80595267]
[1743547733359,0.3003872,612.33,611.71,0.80595267]
[1743547733553,0.3003872,612.32,611.72,0.80595267]
[1743547733755,0.3003872,612.4,611.73,0.80618656]
[1743547733960,0.3003872,612.39,611.74,0.80618656]
[1743547734154,0.3003872,612.4,611.75,0.80618656]
[1743547734358,0.28438343,612.38,611.76,0.80623522]
[1743547734553,0.3003872,612.37,611.77,0.80623522]
[1743547734758,0.3003872,612.37,611.78,0.80623522]
[1743547734957,0.3003872,612.37,611.79,0.80623522]
[1743547735153,0.3003872,612.37,611.8,0.80623522]
[1743547735461,0.3003872,612.37,611.81,0.80623522]
[1743547735659,0.3003872,612.37,611.82,0.80623522]
[1743547735863,0.3003872,612.37,611.83,0.80623522]
[1743547736057,0.3003872,612.37,611.84,0.80623522]
[1743547736257,0.3003872,612.37,611.85,0.80623522]
[1743547736460,0.3003872,612.37,611.86,0.80623522]
[1743547736659,0.3003872,612.37,611.87,0.80623522]
[1743547736858,0.28438343,612.38,611.88,0.80623522]
[1743547737063,0.30043504,612.37,611.89,0.80623522]
[1743547737262,0.30043504,612.36,611.9,0.80623522]
[1743547737559,0.30043504,612.35,611.91,0.80623522]
[1743547737760,0.30043504,612.36,611.92,0.80648418]
[1743547737960,0.30043504,612.36,611.93,0.80648418]
[1743547738263,0.30043504,612.36,611.94,0.80648418]
[1743547738463,0.30043504,612.36,611.95,0.80648418]
[1743547738663,0.30043504,612.36,611.96,0.80648418]
[1743547738863,0.30043504,612.36,611.97,0.80648418]
[1743547739166,0.30043504,612.36,611.98,0.80648418]
[1743547739358,0.30043504,612.36,611.99,0.80648418]
[1743547739562,0.30043504,612.36,612.0,0.80648418]
[1743547739761,0.30043504,612.36,612.01,0.80648418]
[1743547739965,0.30043504,612.36,612.02,0.80648418]
[1743547740166,0.30043504,612.36,612.03,0.80648418]
[1743547740367,0.58480917,612.35,612.04,0.80648418]
[1743547740567,0.30043504,612.34,612.05,0.80648418]
[1743547740769,0.30043504,612.34,612.06,0.80648418]
[1743547740968,0.30043504,612.34,611.55,0.32703785]
[1743547741370,0.30043504,612.34,611.56,0.80643783]
[1743547741570,0.30043504,612.34,611.57,0.80643783]
[1743547741769,0.30043504,612.34,611.58,0.80643783]
[1743547741971,0.30043504,612.34,611.59,0.80643783]
[1743547742272,0.30043504,612.34,611.6,0.80643783]
[1743547742472,0.30043504,612.34,611.61,0.80643783]
[1743547742665,0.30043504,612.34,611.62,0.80643783]
[1743547742866,0.30043504,612.34,611.63,0.80643783]
[1743547743065,0.30043504,612.34,611.55,0.32703785]
[1743547743066,0.30043504,612.34,611.64,0.80643783]
[1743547743273,0.30043504,612.44,611.65,0.80643783]
[1743547743466,0.28440318,612.33,611.66,0.80643783]
[1743547743667,0.30043504,612.32,611.67,0.80643783]
[1743547743970,0.3003984,612.31,611.68,0.80643783]
[1743547744171,0.77,612.45,611.69,0.80643783]
[1743547744172,0.3003984,612.44,611.69,0.80643783]
[1743547744474,0.28438575,612.3,611.7,0.80643783]
[1743547744669,0.77,612.45,611.71,0.80643783]
[1743547744873,0.3003984,612.44,611.72,0.80643783]
[1743547745173,0.28438575,612.29,611.55,0.32703785]
[1743547745372,0.77,612.45,611.56,0.80600123]
[1743547745672,0.28442294,612.28,611.57,0.80600123]
[1743547745871,0.3003984,612.27,611.58,0.80600123]
[1743547746074,0.3003984,612.44,611.59,0.80600123]
[1743547746372,0.2843997,612.27,611.6,0.80600123]
[1743547746570,0.3003984,612.26,611.61,0.80600123]
[1743547746767,0.28439737,612.26,611.62,0.80600123]
[1743547746967,0.3003984,612.25,611.63,0.80600123]
[1743547747168,0.3003984,612.25,611.64,0.80600123]
[1743547747372,0.3003984,612.25,611.65,0.80600123]
[1743547747572,0.3003984,612.25,611.66,0.80600123]
[1743547747770,0.3003984,612.25,611.67,0.80600123]
[1743547747970,0.28439737,612.26,611.68,0.80600123]
[1743547748170,0.28439737,612.26,611.69,0.80600123]
[1743547748369,0.3003984,612.25,611.7,0.80600123]
[1743547748677,0.28439737,612.26,611.71,0.80600123]
[1743547748875,0.3003984,612.25,611.72,0.80600123]
[1743547749175,0.3003984,612.25,611.73,0.80600123]
[1743547749375,0.28439737,612.26,611.74,0.80600123]
[1743547749575,0.3003984,612.25,611.75,0.80600123]
[1743547749775,0.3003984,612.25,611.76,0.80600123]
[1743547749976,0.28439737,612.26,611.77,0.80600123]
[1743547750274,0.28439737,612.26,611.78,0.80600123]
[1743547750475,0.28439737,612.26,611.79,0.80600123]
[1743547750678,0.524,612.25,611.8,0.80600123]
[1743547750876,0.524,612.25,611.81,0.80600123]
[1743547751069,0.524,612.25,611.55,0.32703785]
[1743547751070,0.524,612.25,611.82,0.80600123]
[1743547751274,0.524,612.25,611.83,0.80600123]
[1743547751474,0.524,612.25,611.84,0.80600123]
[1743547751670,0.524,612.25,611.85,0.80600123]
[1743547751871,0.30039538,612.24,611.86,0.80600123]
[1743547752075,0.30039538,612.24,611.87,0.80600123]
[1743547752276,0.30039538,612.24,611.88,0.80600123]
[1743547752472,0.30039538,612.24,611.89,0.80600123]
[1743547752675,0.30039538,612.24,611.9,0.80600123]
[1743547752881,0.30039538,612.24,611.55,0.32703785]
[1743547752882,0.30039538,612.24,611.91,0.80600123]
[1743547753080,0.30039538,612.24,611.92,0.80600123]
[1743547753282,0.30039538,612.24,611.93,0.80600123]
[1743547753481,0.30039538,612.24,611.94,0.80600123]
[1743547753784,0.30040412,612.23,611.95,0.80600123]
[1743547754084,0.30040412,612.22,611.96,0.80600123]
[1743547754383,0.30040412,612.21,611.97,0.80600123]
[1743547754583,0.30040412,612.24,611.98,0.80600123]
[1743547754778,0.30040412,612.23,611.99,0.80600123]
[1743547755083,0.30040412,612.22,612.0,0.80600123]
[1743547755282,0.30041728,612.21,612.01,0.80600123]
[1743547755483,0.30041728,612.2,612.02,0.80600123]
[1743547755683,0.30041728,612.19,612.03,0.80600123]
[1743547755879,0.30041728,612.24,612.04,0.80600123]
[1743547756081,0.30041728,612.23,612.05,0.80600123]
[1743547756277,0.30041728,612.24,612.06,0.80600123]
[1743547756479,0.30041728,612.23,612.07,0.80600123]
[1743547756678,0.30041728,612.23,611.55,0.32703785]
[1743547756679,0.30041728,612.22,612.08,0.80600123]
[1743547756882,0.30041728,612.24,611.55,0.32703785]
[1743547757083,0.30041728,612.23,611.56,0.80769714]
[1743547757283,0.30041728,612.22,611.57,0.80769714]
[1743547757481,0.30041728,612.21,611.58,0.80763322]
[1743547757679,0.30041728,612.24,611.59,0.80763322]
[1743547757986,0.30041728,612.23,611.6,0.80763322]
[1743547758182,0.30041728,612.24,611.61,0.80763322]
[1743547758387,0.28442991,612.22,611.62,0.80763322]
[1743547758685,0.28442991,612.22,611.63,0.80763322]
[1743547758686,0.30041728,612.21,611.63,0.80763322]
[1743547758886,0.30041728,612.21,611.55,0.32703785]
[1743547758887,0.30041728,612.21,611.64,0.80763322]
[1743547759088,0.30041728,612.21,611.65,0.80763322]
[1743547759287,0.30041728,612.21,611.66,0.80763322]
[1743547759485,0.30041728,612.21,611.67,0.80763322]
[1743547759785,0.30041728,612.21,611.68,0.80763322]
[1743547759990,0.30041728,612.21,611.69,0.80763322]
[1743547760186,0.30041728,612.21,611.7,0.80763322]
[1743547760387,0.30041728,612.21,611.71,0.80763322]
[1743547760587,0.30041728,612.21,611.72,0.80763322]
[1743547760785,0.30041728,612.21,611.73,0.80763322]
[1743547761085,0.30041728,612.21,611.55,0.32703785]
[1743547761086,0.30041728,612.21,611.74,0.80763322]
[1743547761291,0.30041728,612.24,611.75,0.80763322]
[1743547761488,0.28441829,612.2,611.76,0.80763322]
[1743547761688,0.30041728,612.19,611.77,0.80763322]
[1743547761890,0.30041728,612.19,611.78,0.80763322]
[1743547762089,0.30041728,612.19,611.79,0.80763322]
[1743547762291,0.30041728,612.19,611.8,0.80763322]
[1743547762489,0.30041728,612.19,611.81,0.80763322]
[1743547762689,0.30041728,612.19,611.82,0.80763322]
[1743547762887,0.30041728,612.19,611.83,0.80763322]
[1743547763090,0.30041728,612.19,611.84,0.80763322]
[1743547763287,0.28441829,612.2,611.85,0.80763322]
[1743547763492,0.3004696,612.19,611.86,0.80763322]
[1743547763694,0.3004696,612.19,611.87,0.80763322]
[1743547763893,0.3004696,612.19,611.88,0.80763322]
[1743547764095,0.3004696,612.19,611.89,0.80763322]
[1743547764296,0.524,612.25,611.9,0.80763322]
[1743547764297,0.3004696,612.24,611.9,0.80763322]
[1743547764595,0.2844334,612.18,611.91,0.80763322]
[1743547764894,0.3004696,612.17,611.92,0.80763322]
[1743547765195,0.3004696,612.17,611.93,0.80763322]
[1743547765394,0.3004696,612.17,611.94,0.80763322]
[1743547765595,0.3004696,612.17,611.95,0.80763322]
[1743547765797,0.3004696,612.17,611.96,0.80763322]
[1743547765996,0.3004696,612.17,611.97,0.80763322]
[1743547766191,0.3004696,612.17,611.98,0.80763322]
[1743547766497,0.3004696,612.17,611.99,0.80763322]
[1743547766796,0.3004696,612.17,611.35,1.20745427]
[1743547766988,0.3004696,612.17,611.36,0.80669045]
[1743547767190,0.3004696,612.17,611.37,0.80669045]
[1743547767394,0.3004696,612.24,611.38,0.80669045]
[1743547767588,0.28449618,612.16,611.39,0.80669045]
[1743547767789,0.3004696,612.15,611.4,0.80669045]
[1743547767991,0.524,612.25,611.41,0.80669045]
[1743547768198,0.30047829,612.24,611.42,0.80669045]
[1743547768399,0.30047829,612.24,611.43,0.80669045]
[1743547768593,0.28448107,612.23,611.44,0.80669045]
[1743547768798,0.30047829,612.22,611.45,0.80669045]
[1743547768997,0.30047829,612.22,611.46,0.80669045]
[1743547769194,0.30047829,612.22,611.47,0.80669045]
[1743547769398,0.30047829,612.22,611.48,0.80669045]
[1743547769598,0.30047829,612.22,611.49,0.80669045]
[1743547769802,0.28448107,612.23,611.5,0.80594078]
[1743547770101,0.524,612.25,611.51,0.80594078]
[1743547770401,0.524,612.25,611.52,0.80594078]
[1743547770598,0.28442875,612.24,611.53,0.80594078]
[1743547770799,0.28442875,612.24,611.54,0.80594078]
[1743547770997,0.28442875,612.24,611.55,0.80594078]
[1743547771305,0.28442875,612.24,611.32,1.20745427]
[1743547771306,0.28442875,612.24,611.56,0.80594078]
[1743547771502,0.28442875,612.24,611.32,1.20745427]
[1743547771503,0.28442875,612.24,611.57,0.80594078]
[1743547771704,0.28442875,612.24,611.58,0.80594078]
[1743547771900,0.28442875,612.24,611.32,1.20745427]
[1743547771901,0.28442875,612.24,611.59,0.80613285]
[1743547772105,0.28442875,612.24,611.6,0.80613285]
[1743547772307,0.28442875,612.24,611.61,0.80613285]
[1743547772604,0.28442875,612.24,611.62,0.80613285]
[1743547772806,0.28442875,612.24,611.63,0.80613285]
[1743547773006,0.28442875,612.24,611.64,0.80613285]
[1743547773305,0.30043882,612.23,611.65,0.80613285]
[1743547773508,0.28442991,612.23,611.66,0.80613285]
[1743547773708,0.28442991,612.23,611.67,0.80613285]
[1743547773904,0.28442991,612.23,611.68,0.80613285]
[1743547774104,0.667,612.22,611.69,0.80613285]
[1743547774301,0.667,612.22,611.7,0.80613285]
[1743547774501,0.667,612.22,611.71,0.80613285]
[1743547774707,0.667,612.22,611.72,0.80613285]
[1743547774900,0.30043853,612.21,611.73,0.80613285]
[1743547775104,0.30043853,612.21,611.74,0.80613285]
[1743547775402,0.30043853,612.21,611.75,0.80613285]
[1743547775606,0.30043853,612.21,611.76,0.80613285]
[1743547775807,0.30043853,612.21,611.77,0.8066223]
[1743547776007,0.30043853,612.21,611.78,0.8066223]
[1743547776202,0.667,612.22,611.79,0.8066223]
[1743547776405,0.667,612.22,611.8,0.8066223]
[1743547776603,0.667,612.22,611.81,0.8066223]
[1743547776908,0.667,612.22,611.82,0.8066223]
[1743547777110,0.667,612.22,611.83,0.8066223]
[1743547777304,0.667,612.22,611.84,0.8066223]
[1743547777506,0.667,612.22,611.85,0.8066223]
[1743547777706,0.667,612.22,611.86,0.8066223]
[1743547777902,0.667,612.22,611.87,0.8066223]
[1743547778109,0.667,612.22,611.88,0.8066223]
[1743547778309,0.667,612.22,611.89,0.8066223]
[1743547778509,0.667,612.22,611.9,0.8066223]
[1743547778710,0.667,612.22,611.91,0.8066223]
[1743547778910,0.667,612.22,611.56,1.20745427]
[1743547778911,0.667,612.22,611.92,0.8066223]
[1743547779111,0.667,612.22,611.93,0.8066223]
[1743547779313,0.667,612.22,611.94,0.8066223]
[1743547779611,0.667,612.22,611.95,0.8066223]
[1743547779806,0.667,612.22,611.96,0.8066223]
[1743547780110,0.667,612.22,611.97,0.8066223]
[1743547780305,0.667,612.22,611.98,0.8066223]
[1743547780611,0.667,612.22,611.99,0.8066223]
[1743547780612,0.284366,612.21,611.99,0.8066223]
[1743547780808,0.284366,612.21,612.0,0.8066223]
[1743547781010,0.284366,612.21,612.01,0.8066223]
[1743547781205,0.284366,612.21,611.56,1.20745427]
[1743547781206,0.284366,612.21,612.02,0.8066223]
[1743547781408,0.284366,612.21,612.03,0.8066223]
[1743547781710,0.284366,612.21,612.04,0.8066223]
[1743547781911,0.284366,612.21,612.05,0.8066223]
[1743547782111,0.667,612.22,612.06,0.8066223]
[1743547782315,0.667,612.22,612.07,0.8066223]
[1743547782612,0.667,612.22,612.08,0.8066223]
[1743547782805,0.667,612.22,612.09,0.8066223]
[1743547783009,0.667,612.22,612.1,0.8066223]
[1743547783208,0.667,612.22,612.11,0.8066223]
[1743547783410,0.667,612.22,612.12,0.8066223]
[1743547783612,0.667,612.22,612.13,0.8066223]
[1743547783911,0.667,612.22,612.14,0.8066223]
[1743547784112,0.667,612.22,611.36,1.54334781]
[1743547784113,0.667,612.22,612.15,0.8066223]
[1743547784308,0.667,612.22,612.16,0.8066223]
[1743547784510,0.667,612.22,612.17,0.8066223]
[1743547784810,0.667,612.22,612.18,0.8066223]
[1743547785007,0.667,612.22,612.19,0.8066223]
[1743547785312,0.667,612.22,612.2,0.8066223]
[1743547785508,0.667,612.22,612.21,0.8066223]
[1743547788617,0.95133696,612.22,612.21,0.8066223]
[1743547790816,0.95133696,612.22,612.21,0.80870048]
[1743547791017,0.667,612.22,611.54,1.20745427]
[1743547791220,0.667,612.22,611.55,0.80870868]
[1743547791418,0.95133696,612.22,611.56,0.80870868]
[1743547791618,0.95133696,612.22,611.57,0.80870868]
[1743547791819,0.95133696,612.22,611.58,0.80870868]
[1743547792019,0.95133696,612.22,611.59,0.80870868]
[1743547792220,0.95133696,612.22,611.6,0.80870868]
[1743547792416,0.95133696,612.22,611.61,0.80870868]
[1743547792618,0.95133696,612.22,611.62,0.80870868]
[1743547792919,0.95133696,612.22,611.63,0.80870868]
[1743547793119,0.28433696,612.22,611.64,0.80870868]
[1743547793314,0.28433696,612.22,611.65,0.80870868]
[1743547793517,0.28433696,612.22,611.66,0.80870868]
[1743547793717,0.28433696,612.22,611.67,0.80870868]
[1743547793914,0.28433696,612.22,611.5,1.20745427]
[1743547793915,0.28433696,612.22,611.68,0.80870868]
[1743547794214,0.658,612.41,611.69,0.80870868]
[1743547794520,0.28437646,612.21,611.7,0.80870868]
[1743547794715,0.658,612.41,611.71,0.80870034]
[1743547794919,0.30038192,612.4,611.72,0.80870034]
[1743547795120,0.28437529,612.21,611.73,0.80870034]
[1743547795420,0.658,612.41,611.74,0.80870034]
[1743547795617,0.28437181,612.21,611.75,0.80870034]
[1743547795815,0.28437181,612.21,611.76,0.80870034]
[1743547796122,0.658,612.41,611.77,0.80870034]
[1743547796319,0.28436948,612.21,611.78,0.80870034]
[1743547796521,0.686,612.23,611.79,0.80870034]
[1743547796719,0.686,612.23,611.8,0.80870034]
[1743547797020,0.28438575,612.21,611.81,0.80870034]
[1743547797322,0.28438575,612.21,611.82,0.80870034]
[1743547797521,0.28438575,612.21,611.83,0.80870034]
[1743547797821,0.28438575,612.21,611.84,0.80870034]
[1743547798020,0.28438575,612.21,611.85,0.80870034]
[1743547798320,0.28438575,612.21,611.86,0.80870034]
[1743547798521,0.28438575,612.21,611.87,0.80870034]
[1743547798721,0.28438575,612.21,611.88,0.80870034]
[1743547798924,0.28438575,612.21,611.89,0.80870034]
[1743547799121,0.28438575,612.21,611.9,0.80870034]
[1743547799317,0.28438575,612.21,611.91,0.80870034]
[1743547799523,0.28438575,612.21,611.92,0.80870034]
[1743547799722,0.28438575,612.21,611.93,0.80870034]
[1743547799923,0.28438575,612.21,611.94,0.80870034]
[1743547800120,0.686,612.23,611.95,0.80870034]
[1743547800324,0.686,612.23,611.36,0.32713949]
[1743547800325,0.686,612.23,611.96,0.80870034]
[1743547800521,0.28436716,612.21,611.97,0.80870034]
[1743547800724,0.28436716,612.21,611.98,0.80870034]
[1743547800920,0.28436716,612.21,611.99,0.80870034]
[1743547801225,0.28436716,612.21,612.0,0.80870034]
[1743547801422,0.28436716,612.21,612.01,0.80870034]
[1743547801622,0.28436716,612.21,612.02,0.80870034]
[1743547801820,0.28436716,612.21,612.03,0.80870034]
[1743547802020,0.28436716,612.21,612.04,0.80870034]
[1743547802222,0.28436716,612.21,612.05,0.80871873]
[1743547802419,0.28436716,612.21,612.06,0.80871873]
[1743547802625,0.28436716,612.21,612.07,0.80871873]
[1743547802826,0.28436716,612.21,612.08,0.80871873]
[1743547803025,0.28436716,612.21,612.09,0.80871873]
[1743547803226,0.686,612.23,612.1,0.80871873]
[1743547803427,0.2843509,612.21,612.11,0.80871873]
[1743547803628,0.2843509,612.21,612.12,0.80871873]
[1743547803830,0.2843509,612.21,612.13,0.80871873]
[1743547804022,0.2843509,612.21,612.14,0.80871873]
[1743547804221,0.2843509,612.21,612.15,0.80871873]
[1743547804422,0.2843509,612.21,612.16,0.80871873]
[1743547804622,0.2843509,612.21,612.17,0.80871873]
[1743547804928,0.2843509,612.21,612.18,0.80871873]
[1743547805228,0.2843509,612.21,612.19,0.80871873]
[1743547805428,0.2843509,612.21,612.2,0.80871873]
[1743547806224,0.2843509,612.21,611.5,1.20745427]
[1743547806225,0.686,612.23,611.5,1.20745427]
[1743547806427,0.28433696,612.21,611.51,0.80868362]
[1743547806628,0.28433696,612.21,611.52,0.80868362]
[1743547806827,0.28433696,612.21,611.53,0.80868362]
[1743547807029,0.28433696,612.21,611.54,0.80868362]
[1743547807329,0.28433696,612.21,611.55,0.80868362]
[1743547807528,0.28433696,612.21,611.56,0.80868362]
[1743547807725,0.28433696,612.21,611.57,0.80868362]
[1743547807931,0.28433696,612.21,611.58,0.80868362]
[1743547808231,0.28433696,612.21,611.59,0.80868362]
[1743547808430,0.28433696,612.21,611.6,0.80868362]
[1743547808628,0.28433696,612.21,611.61,0.80868362]
[1743547808823,0.28433696,612.21,611.62,0.80868362]
[1743547809025,0.28433696,612.21,611.63,0.80868362]
[1743547809227,0.708,612.22,611.64,0.80868362]
[1743547809430,0.708,612.22,611.65,0.80868362]
[1743547809431,0.28440551,612.21,611.65,0.80868362]
[1743547809626,0.28440551,612.21,611.66,0.80868362]
[1743547809829,0.28440551,612.21,611.67,0.80868362]
[1743547810029,0.28440551,612.21,611.68,0.80868362]
[1743547810228,0.28440551,612.21,611.69,0.80868362]
[1743547810430,0.28440551,612.21,611.7,0.80868389]
[1743547810630,0.28440551,612.21,611.71,0.80868389]
[1743547810924,0.28440551,612.21,611.72,0.80868389]
[1743547811131,0.28440551,612.21,611.73,0.80868389]
[1743547811331,0.28440551,612.21,611.74,0.80868389]
[1743547811532,0.28440551,612.21,611.6,1.20745427]
[1743547811533,0.28440551,612.21,611.75,0.80868389]
[1743547811828,0.28440551,612.21,611.76,0.80868389]
[1743547812026,0.28440551,612.21,611.77,0.80868389]
[1743547812231,0.708,612.22,611.78,0.80868389]
[1743547812430,0.708,612.22,611.79,0.80868389]
[1743547812632,0.28438808,612.21,611.8,0.80868389]
[1743547812825,0.28438808,612.21,611.66,1.20745427]
[1743547812826,0.28438808,612.21,611.81,0.80868389]
[1743547813026,0.28438808,612.21,611.82,0.80868389]
[1743547813226,0.28438808,612.21,611.83,0.80868389]
[1743547813425,0.28438808,612.21,611.84,0.80868389]
[1743547813627,0.28438808,612.21,611.85,0.80868389]
[1743547813833,0.28438808,612.21,611.86,0.80868389]
[1743547814026,0.28438808,612.21,611.66,1.20745427]
[1743547814027,0.28438808,612.21,611.87,0.80868389]
[1743547814231,0.28438808,612.21,611.88,0.80868389]
[1743547814431,0.28438808,612.21,611.89,0.80868389]
[1743547814629,0.28438808,612.21,611.9,0.80868389]
[1743547814827,0.28438808,612.21,611.91,0.80868389]
[1743547815033,0.28438808,612.21,611.92,0.80868389]
[1743547815231,0.708,612.22,611.93,0.80868389]
[1743547815431,0.708,612.22,611.94,0.80868389]
[1743547815635,0.28440783,612.2,611.95,0.80868389]
[1743547815830,0.28440783,612.2,611.96,0.80868389]
[1743547816034,0.28440783,612.2,611.97,0.80868389]
[1743547816236,0.28440783,612.2,611.98,0.80953511]
[1743547816429,0.28440783,612.2,611.99,0.80953511]
[1743547816634,0.28440783,612.2,611.7,1.20745427]
[1743547816635,0.28440783,612.2,612.0,0.80953511]
[1743547816834,0.28440783,612.2,611.7,1.20745427]
[1743547816835,0.28440783,612.2,612.01,0.80953511]
[1743547817034,0.28440783,612.2,612.02,0.80953511]
[1743547817234,0.28440783,612.2,612.03,0.80953511]
[1743547817433,0.28440783,612.2,612.04,0.80953511]
[1743547817634,0.28440783,612.2,612.05,0.80953511]
[1743547817835,0.28440783,612.2,612.06,0.80953511]
[1743547818032,0.708,612.22,612.07,0.80953511]
[1743547818236,0.708,612.22,612.08,0.80953511]
[1743547818438,0.28439156,612.19,612.09,0.80953511]
[1743547818636,0.28439156,612.19,612.1,0.80953511]
[1743547818838,0.28439156,612.19,612.11,0.80953511]
[1743547819033,0.28439156,612.19,612.12,0.80953511]
[1743547819240,0.28439156,612.19,612.13,0.80953511]
[1743547819432,0.28439156,612.19,612.14,0.80953511]
[1743547819636,0.28439156,612.19,612.15,0.80953511]
[1743547819832,0.28439156,612.19,612.16,0.80953511]
[1743547820037,0.28439156,612.19,612.17,0.80953511]
[1743547820341,0.28439156,612.19,612.18,0.80953511]
[1743547821143,0.708,612.22,612.18,0.80953511]
[1743547821434,0.708,612.22,612.19,0.80953511]
[1743547821634,0.708,612.22,612.2,0.80953511]
[1743547821839,0.708,612.22,612.21,0.80953511]
[1743547822540,0.99234857,612.22,611.45,1.20745427]
[1743547822840,0.99234857,612.22,611.46,0.80960746]
[1743547823135,0.99234857,612.22,611.47,2.01706173]
[1743547823336,0.99234857,612.22,611.48,0.80960746]
[1743547823640,0.30042513,612.21,611.49,0.80960746]
[1743547823843,0.30042513,612.21,611.5,0.80960746]
[1743547824140,0.30042513,612.21,611.51,0.80960746]
[1743547824338,0.30042513,612.21,611.52,0.80960746]
[1743547824538,0.30042513,612.21,611.53,0.80960746]
[1743547824738,0.30042513,612.21,611.54,0.80960746]
[1743547825035,0.30042513,612.21,611.55,0.80960746]
[1743547825234,0.30042513,612.21,611.56,0.80960746]
[1743547825540,0.30042513,612.21,611.58,1.20745427]
[1743547825734,0.30042513,612.21,611.59,0.80960746]
[1743547825938,0.30042513,612.21,611.6,0.80960746]
[1743547826138,0.30042513,612.21,611.61,0.80960746]
[1743547826336,0.666,612.2,611.62,0.80960746]
[1743547826537,0.30042513,612.19,611.63,0.80960746]
[1743547826736,0.30042513,612.19,611.64,0.81046333]
[1743547826937,0.30042513,612.19,611.65,0.81046333]
[1743547827135,0.30042513,612.19,611.66,0.81046333]